fUSD/lending_fUSD_20260509
["ID","MTS","AMOUNT","RATE_DAILY","PERIOD"]
[421914627,1778332243000,-151.0,0.00016438,2]
[421914611,1778332243000,-500.0,0.00016438,2]
[421914578,1778332243000,-151.0,0.00016438,2]
[421914612,1778332243000,-500.21620449,0.00016438,2]
[421914574,1778332243000,-151.0,0.00016438,2]
[421914581,1778332243000,-501.17746914,0.00016438,2]
[421914580,1778332243000,-500.0,0.00016438,2]
[421914582,1778332243000,-521.34462995,0.00016438,2]
[421914588,1778332243000,-1203.596986,0.00016438,2]
[421914586,1778332243000,-1203.596986,0.00016438,2]
[421914584,1778332243000,-1203.596986,0.00016438,2]
[421914589,1778332243000,-1203.596986,0.00016438,2]
[421914590,1778332243000,-500.0,0.00016438,2]
[421914594,1778332243000,-1203.596986,0.00016438,2]
[421914596,1778332243000,-1203.596986,0.00016438,2]
[421914591,1778332243000,-500.38337367,0.00016438,2]
[421914583,1778332243000,-450.0,0.00016438,2]
[421914602,1778332243000,-500.78732283,0.00016438,2]
[421914599,1778332243000,-1203.596986,0.00016438,2]
[421914597,1778332243000,-500.72125417,0.00016438,2]
[421914605,1778332243000,-500.78613702,0.00016438,2]
[421914603,1778332243000,-500.1456987,0.00016438,2]
[421914604,1778332243000,-502.51755111,0.00016438,2]
[421914600,1778332243000,-200.65703844,0.00016438,2]
[421914601,1778332243000,-504.85382183,0.00016438,2]
[421914606,1778332243000,-502.08379234,0.00016438,2]
[421914610,1778332243000,-500.17470362,0.00016438,2]
[421914607,1778332243000,-500.82054847,0.00016438,2]
[421914598,1778332243000,-1203.596986,0.00016438,2]
[421914609,1778332243000,-367.91287327,0.00016438,2]
[421914608,1778332243000,-501.81621784,0.00016438,2]
[421914685,1778332244000,-1628.7890917,0.00018,2]
[421914690,1778332244000,-1628.7890917,0.000182,2]
[421914679,1778332244000,-192.349945,0.00017768,7]
[421914691,1778332244000,-297.677205,0.000182,2]
[421914688,1778332244000,-5779.22,0.000182,2]
[421914687,1778332244000,-6437.99874679,0.000181,2]
[421914682,1778332244000,-223.895323,0.00017863,2]
[421914686,1778332244000,-200.0,0.00018042,2]
[421914684,1778332244000,-350.0,0.00018,2]
[421914683,1778332244000,-418.75063302,0.00017952,2]
[421914680,1778332244000,-2000.0,0.00017859,2]
[421914693,1778332244000,-297.677205,0.000182,2]
[421914689,1778332244000,-3420.63,0.000182,2]
[421914694,1778332244000,-297.677205,0.000182,2]
[421914713,1778332244000,-3420.63,0.00019,2]
[421914692,1778332244000,-297.677205,0.000182,2]
[421914695,1778332244000,-236.27,0.00018318,2]
[421914701,1778332244000,-1653.1,0.0001841,2]
[421914703,1778332244000,-1628.7890917,0.000185,2]
[421914699,1778332244000,-4224.15020531,0.00018401,2]
[421914710,1778332244000,-1034.0,0.00018737,5]
[421914709,1778332244000,-852.27,0.0001872,2]
[421914706,1778332244000,-200.0,0.0001859,2]
[421914707,1778332244000,-830.58,0.000187,2]
[421914708,1778332244000,-1628.7890917,0.000187,2]
[421914712,1778332244000,-5779.22,0.00019,2]
[421914711,1778332244000,-516.0,0.00018893,2]
[421914714,1778332244000,-354.0,0.00019,2]
[421914681,1778332244000,-294.27534,0.00017863,7]
[421914697,1778332244000,-1628.7890917,0.000184,2]
[421914678,1778332244000,-150.0,0.00017751,2]
[421914645,1778332244000,-275.0,0.00016787,2]
[421914676,1778332244000,-1082.283819,0.00017649,7]
[421914715,1778332244000,-217.0,0.00019,2]
[421914646,1778332244000,-200.0,0.00016787,2]
[421914643,1778332244000,-175.42,0.00016712,2]
[421914644,1778332244000,-200.0,0.00016712,2]
[421914642,1778332244000,-236.27,0.00016653,2]
[421914648,1778332244000,-150.0,0.00016787,2]
[421914651,1778332244000,-1352.0,0.00016787,2]
[421914647,1778332244000,-150.0,0.00016787,2]
[421914652,1778332244000,-1269.0,0.00016787,2]
[421914649,1778332244000,-624.0,0.00016787,2]
[421914650,1778332244000,-925.0,0.00016787,2]
[421914654,1778332244000,-209.745422,0.00016787,2]
[421914664,1778332244000,-200.0,0.00016946,2]
[421914658,1778332244000,-209.745422,0.00016787,2]
[421914677,1778332244000,-3725.4,0.00017729,2]
[421914662,1778332244000,-830.58,0.000168,2]
[421914660,1778332244000,-209.745422,0.00016787,2]
[421914653,1778332244000,-151.0,0.00016787,2]
[421914663,1778332244000,-499.82,0.000169,2]
[421914665,1778332244000,-1000.0,0.00016986,2]
[421914669,1778332244000,-6437.99874679,0.00017133,2]
[421914667,1778332244000,-151.0,0.00017068,2]
[421914668,1778332244000,-699.0,0.00017087,2]
[421914666,1778332244000,-500.0,0.00016986,2]
[421914670,1778332244000,-158.58,0.00017318,2]
[421914671,1778332244000,-504.0,0.00017417,2]
[421914672,1778332244000,-736.0,0.00017468,2]
[421914673,1778332244000,-200.0,0.00017494,2]
[421914675,1778332244000,-6437.99874679,0.00017617,2]
[421914674,1778332244000,-502.67330088,0.00017538,2]
[421914656,1778332244000,-209.745422,0.00016787,2]
[421914724,1778332244000,-1051.0,0.00019,2]
[421914769,1778332244000,-180.09102489,0.00020267,2]
[421914719,1778332244000,-4392.0,0.00019,2]
[421914751,1778332244000,-4835.66809062,0.0002,2]
[421914753,1778332244000,-354.0,0.0002,2]
[421914756,1778332244000,-2195.0,0.0002,2]
[421914754,1778332244000,-217.0,0.0002,2]
[421914757,1778332244000,-4392.0,0.0002,2]
[421914758,1778332244000,-271.0,0.0002,2]
[421914764,1778332244000,-156.0,0.0002,2]
[421914759,1778332244000,-374.0,0.0002,2]
[421914760,1778332244000,-10335.3515493,0.0002,2]
[421914762,1778332244000,-156.0,0.0002,2]
[421914763,1778332244000,-150.0,0.0002,10]
[421914761,1778332244000,-287.40833022,0.0002,2]
[421914783,1778332244000,-4224.15020531,0.00020727,2]
[421914766,1778332244000,-1683.83,0.0002,30]
[421914755,1778332244000,-201.0,0.0002,2]
[421914768,1778332244000,-4779.77789529,0.00020166,2]
[421914767,1778332244000,-278.97822125,0.00020029,12]
[421914770,1778332244000,-1582.0,0.00020327,2]
[421914771,1778332244000,-1653.1,0.00020381,2]
[421914773,1778332244000,-3420.63,0.000205,2]
[421914772,1778332244000,-5779.22,0.000205,2]
[421914777,1778332244000,-1601.0,0.00020599,2]
[421914776,1778332244000,-1066.68029644,0.00020578,2]
[421914774,1778332244000,-1582.0,0.00020507,2]
[421914775,1778332244000,-150.0,0.00020578,2]
[421914782,1778332244000,-830.58,0.000207,2]
[421914781,1778332244000,-485.85468374,0.00020649,2]
[421914779,1778332244000,-423.83960686,0.000206,2]
[421914778,1778332244000,-619.67859486,0.000206,2]
[421914717,1778332244000,-2195.0,0.00019,2]
[421914765,1778332244000,-1051.0,0.0002,2]
[421914752,1778332244000,-400.0,0.0002,2]
[421914780,1778332244000,-424.35880674,0.000206,2]
[421914749,1778332244000,-388.51214,0.00019951,7]
[421914743,1778332244000,-925.0,0.00019787,2]
[421914716,1778332244000,-201.0,0.00019,2]
[421914721,1778332244000,-374.0,0.00019,2]
[421914722,1778332244000,-156.0,0.00019,2]
[421914720,1778332244000,-271.0,0.00019,2]
[421914723,1778332244000,-156.0,0.00019,2]
[421914726,1778332244000,-151.0,0.00019,2]
[421914729,1778332244000,-200.0,0.00019138,2]
[421914728,1778332244000,-151.0,0.00019,2]
[421914725,1778332244000,-752.50106913,0.00019,2]
[421914727,1778332244000,-151.0,0.00019,2]
[421914731,1778332244000,-929.0,0.0001917,2]
[421914730,1778332244000,-417.0,0.0001917,2]
[421914734,1778332244000,-1051.63484536,0.00019468,11]
[421914735,1778332244000,-158.58,0.00019482,2]
[421914718,1778332244000,-12837.05156764,0.00019,2]
[421914732,1778332244000,-3000.0,0.00019178,2]
[421914736,1778332244000,-2000.0,0.00019482,2]
[421914745,1778332244000,-1269.0,0.00019787,2]
[421914748,1778332244000,-164.2,0.00019899,2]
[421914746,1778332244000,-162.46,0.000198,4]
[421914750,1778332244000,-236.27,0.00019984,2]
[421914742,1778332244000,-624.0,0.00019787,2]
[421914744,1778332244000,-1352.0,0.00019787,2]
[421914739,1778332244000,-151.0,0.00019526,2]
[421914733,1778332244000,-151.0,0.00019178,2]
[421914741,1778332244000,-150.0,0.00019787,2]
[421914737,1778332244000,-150.0,0.00019526,2]
[421914747,1778332244000,-150.0,0.00019834,2]
[421914740,1778332244000,-402.706576,0.00019766,7]
[421914738,1778332244000,-151.0,0.00019526,2]
[421914827,1778332245000,-1000.0,0.00021918,5]
[421914816,1778332245000,-297.677205,0.0002185,2]
[421914819,1778332245000,-297.677213,0.0002185,2]
[421914817,1778332245000,-297.677205,0.0002185,2]
[421914822,1778332245000,-151.0,0.0002185,2]
[421914821,1778332245000,-151.0,0.0002185,2]
[421914823,1778332245000,-200.0,0.000219,7]
[421914820,1778332245000,-151.0,0.0002185,2]
[421914825,1778332245000,-151.906263,0.00021918,2]
[421914828,1778332245000,-1657.92,0.00021918,5]
[421914815,1778332245000,-209.745414,0.0002185,2]
[421914818,1778332245000,-297.677205,0.0002185,2]
[421914834,1778332245000,-450.0,0.00022,2]
[421914824,1778332245000,-151.0,0.00021918,2]
[421914830,1778332245000,-1683.83,0.00021979,30]
[421914829,1778332245000,-545.16948576,0.0002194,2]
[421914832,1778332245000,-150.01676561,0.00022,2]
[421914831,1778332245000,-25000.0,0.00021991,3]
[421914835,1778332245000,-25000.0,0.00022,3]
[421914833,1778332245000,-150.0,0.00022,2]
[421914838,1778332245000,-217.0,0.00022,2]
[421914839,1778332245000,-25000.0,0.00022,3]
[421914836,1778332245000,-25000.0,0.00022,3]
[421914837,1778332245000,-354.0,0.00022,2]
[421914814,1778332245000,-209.745422,0.0002185,2]
[421914840,1778332245000,-201.0,0.00022,2]
[421914826,1778332245000,-5000.0,0.00021918,2]
[421914812,1778332245000,-209.745422,0.0002185,2]
[421914797,1778332245000,-2716.17,0.00021273,2]
[421914811,1778332245000,-151.0,0.0002185,2]
[421914841,1778332245000,-2195.0,0.00022,2]
[421914784,1778332245000,-150.0,0.00020834,2]
[421914785,1778332245000,-3706.26904347,0.000209,30]
[421914787,1778332245000,-217.0,0.00021,2]
[421914789,1778332245000,-2195.0,0.00021,2]
[421914788,1778332245000,-201.0,0.00021,2]
[421914786,1778332245000,-354.0,0.00021,2]
[421914791,1778332245000,-271.0,0.00021,2]
[421914792,1778332245000,-374.0,0.00021,2]
[421914794,1778332245000,-1051.0,0.00021,2]
[421914793,1778332245000,-156.0,0.00021,2]
[421914795,1778332245000,-893.8,0.00021273,2]
[421914790,1778332245000,-4392.0,0.00021,2]
[421914796,1778332245000,-8168.44,0.00021273,2]
[421914798,1778332245000,-844.71,0.000213,2]
[421914799,1778332245000,-422.4,0.000213,2]
[421914800,1778332245000,-202.6024,0.00021478,2]
[421914801,1778332245000,-150.0,0.00021834,2]
[421914803,1778332245000,-151.0,0.0002185,2]
[421914802,1778332245000,-244267.22148186,0.0002185,2]
[421914805,1778332245000,-151.0,0.0002185,2]
[421914806,1778332245000,-152.56538,0.0002185,2]
[421914804,1778332245000,-225.255264,0.0002185,2]
[421914808,1778332245000,-1203.596986,0.0002185,2]
[421914807,1778332245000,-1203.596986,0.0002185,2]
[421914810,1778332245000,-1203.596986,0.0002185,2]
[421914809,1778332245000,-1203.596986,0.0002185,2]
[421914813,1778332245000,-209.745422,0.0002185,2]
[421914842,1778332245000,-4392.0,0.00022,2]
[421914844,1778332245000,-374.0,0.00022,2]
[421914889,1778332245000,-354.0,0.00023,2]
[421914876,1778332245000,-1550.0,0.00022936,2]
[421914884,1778332245000,-150.0,0.00022999,2]
[421914881,1778332245000,-1550.0,0.00022936,2]
[421914883,1778332245000,-1408.0,0.00022936,2]
[421914878,1778332245000,-1550.0,0.00022936,2]
[421914882,1778332245000,-1550.0,0.00022936,2]
[421914879,1778332245000,-1550.0,0.00022936,2]
[421914877,1778332245000,-1550.0,0.00022936,2]
[421914885,1778332245000,-4750.60810964,0.00023,2]
[421914887,1778332245000,-274993.5352933,0.00023,2]
[421914886,1778332245000,-1357.52146479,0.00023,2]
[421914888,1778332245000,-151.0,0.00023,2]
[421914875,1778332245000,-1550.0,0.00022936,2]
[421914891,1778332245000,-201.0,0.00023,2]
[421914897,1778332245000,-1203.596986,0.00023,2]
[421914896,1778332245000,-151.0,0.00023,2]
[421914890,1778332245000,-217.0,0.00023,2]
[421914892,1778332245000,-2195.0,0.00023,2]
[421914895,1778332245000,-374.0,0.00023,2]
[421914894,1778332245000,-271.0,0.00023,2]
[421914899,1778332245000,-1203.596986,0.00023,2]
[421914901,1778332245000,-1051.0,0.00023,2]
[421914902,1778332245000,-162.0,0.00023014,7]
[421914900,1778332245000,-1203.596991,0.00023,2]
[421914845,1778332245000,-25000.0,0.00022,3]
[421914898,1778332245000,-1203.596986,0.00023,2]
[421914893,1778332245000,-4392.0,0.00023,2]
[421914873,1778332245000,-20761.6076859,0.00022931,2]
[421914880,1778332245000,-1550.0,0.00022936,2]
[421914872,1778332245000,-150.0,0.00022834,2]
[421914843,1778332245000,-271.0,0.00022,2]
[421914846,1778332245000,-161.98788079,0.00022,2]
[421914847,1778332245000,-162.0,0.00022,2]
[421914848,1778332245000,-1051.0,0.00022,2]
[421914850,1778332245000,-418.75063302,0.00022141,2]
[421914849,1778332245000,-642.09,0.00022,30]
[421914851,1778332245000,-3725.4,0.00022167,2]
[421914853,1778332245000,-162.0,0.00022192,7]
[421914874,1778332245000,-1550.0,0.00022936,2]
[421914855,1778332245000,-343.0662549,0.00022407,2]
[421914857,1778332245000,-343.06625488,0.00022407,2]
[421914856,1778332245000,-343.06625488,0.00022407,2]
[421914854,1778332245000,-1653.1,0.00022353,2]
[421914860,1778332245000,-205.57,0.00022466,2]
[421914852,1778332245000,-929.0,0.0002217,2]
[421914871,1778332245000,-830.58,0.000228,7]
[421914858,1778332245000,-760.29,0.00022466,2]
[421914861,1778332245000,-2150.91,0.00022466,2]
[421914863,1778332245000,-2500.0,0.00022667,2]
[421914862,1778332245000,-35969.19386122,0.000225,2]
[421914864,1778332245000,-800.0,0.00022667,2]
[421914866,1778332245000,-852.27,0.00022691,2]
[421914867,1778332245000,-599.785,0.00022787,2]
[421914870,1778332245000,-1269.0,0.00022787,2]
[421914865,1778332245000,-1350.0,0.00022667,7]
[421914868,1778332245000,-925.0,0.00022787,2]
[421914859,1778332245000,-468.74,0.00022466,2]
[421914869,1778332245000,-1352.0,0.00022787,2]
[421914940,1778332246000,-1400.0,0.00023626,2]
[421914942,1778332246000,-1400.0,0.00023626,2]
[421914937,1778332246000,-1400.0,0.00023626,2]
[421914944,1778332246000,-1400.0,0.00023626,2]
[421914948,1778332246000,-459.47,0.000238,14]
[421914945,1778332246000,-1400.0,0.00023626,2]
[421914939,1778332246000,-1400.0,0.00023626,2]
[421914946,1778332246000,-1104.0,0.00023626,2]
[421914941,1778332246000,-1400.0,0.00023626,2]
[421914938,1778332246000,-1400.0,0.00023626,2]
[421914936,1778332246000,-316.0,0.00023616,2]
[421914947,1778332246000,-155.32791705,0.00023653,2]
[421914943,1778332246000,-1400.0,0.00023626,2]
[421914949,1778332246000,-150.0,0.00023834,2]
[421914962,1778332246000,-389.57272464,0.00024,2]
[421914953,1778332246000,-3600.0,0.00024,2]
[421914952,1778332246000,-1036.13562362,0.00024,2]
[421914956,1778332246000,-369.04682161,0.00024,2]
[421914954,1778332246000,-1252.80254375,0.00024,2]
[421914959,1778332246000,-2208.97982781,0.00024,2]
[421914955,1778332246000,-500.0,0.00024,2]
[421914960,1778332246000,-4395.52471696,0.00024,2]
[421914961,1778332246000,-281.67308578,0.00024,2]
[421914958,1778332246000,-211.11806041,0.00024,2]
[421914957,1778332246000,-227.68780724,0.00024,2]
[421914964,1778332246000,-160.0,0.000241,2]
[421914963,1778332246000,-1063.50269185,0.00024,2]
[421914965,1778332246000,-410.15,0.0002411,2]
[421914934,1778332246000,-250.0,0.00023616,2]
[421914951,1778332246000,-1683.83,0.00023958,60]
[421914932,1778332246000,-250.0,0.00023616,2]
[421914908,1778332246000,-350.0,0.00023101,2]
[421914935,1778332246000,-250.0,0.00023616,2]
[421914904,1778332246000,-350.0,0.00023101,2]
[421914906,1778332246000,-350.0,0.00023101,2]
[421914907,1778332246000,-350.0,0.00023101,2]
[421914903,1778332246000,-4224.15020531,0.00023052,2]
[421914910,1778332246000,-350.0,0.00023101,2]
[421914905,1778332246000,-350.0,0.00023101,2]
[421914909,1778332246000,-350.0,0.00023101,2]
[421914911,1778332246000,-350.0,0.00023101,2]
[421914912,1778332246000,-350.0,0.00023101,2]
[421914913,1778332246000,-209.0,0.00023101,2]
[421914914,1778332246000,-280.05573474,0.0002314,2]
[421914916,1778332246000,-450.0,0.00023352,2]
[421914915,1778332246000,-203.62,0.00023288,4]
[421914933,1778332246000,-250.0,0.00023616,2]
[421914918,1778332246000,-450.0,0.00023352,2]
[421914922,1778332246000,-450.0,0.00023352,2]
[421914923,1778332246000,-450.0,0.00023352,2]
[421914917,1778332246000,-450.0,0.00023352,2]
[421914919,1778332246000,-450.0,0.00023352,2]
[421914921,1778332246000,-450.0,0.00023352,2]
[421914925,1778332246000,-240.0,0.00023364,2]
[421914927,1778332246000,-500.0,0.00023397,2]
[421914924,1778332246000,-577.0,0.00023352,2]
[421914926,1778332246000,-211.0,0.00023364,2]
[421914929,1778332246000,-250.0,0.00023616,2]
[421914930,1778332246000,-250.0,0.00023616,2]
[421914931,1778332246000,-250.0,0.00023616,2]
[421914928,1778332246000,-401.38559561,0.000235,2]
[421914920,1778332246000,-450.0,0.00023352,2]
[421914967,1778332246000,-165.0,0.00024164,7]
[421915010,1778332246000,-202.626464,0.00024658,2]
[421914969,1778332246000,-2598.20082696,0.0002421,2]
[421914996,1778332246000,-1037.98,0.00024658,2]
[421915003,1778332246000,-202.626464,0.00024658,2]
[421915005,1778332246000,-202.626464,0.00024658,2]
[421915004,1778332246000,-202.626464,0.00024658,2]
[421915002,1778332246000,-202.626464,0.00024658,2]
[421915007,1778332246000,-202.626464,0.00024658,2]
[421915006,1778332246000,-202.626464,0.00024658,2]
[421915009,1778332246000,-202.626464,0.00024658,2]
[421915008,1778332246000,-202.626464,0.00024658,2]
[421915012,1778332246000,-202.626464,0.00024658,2]
[421915013,1778332246000,-202.626464,0.00024658,2]
[421915016,1778332246000,-202.626472,0.00024658,2]
[421915014,1778332246000,-202.626464,0.00024658,2]
[421915001,1778332246000,-202.626464,0.00024658,2]
[421915015,1778332246000,-202.626464,0.00024658,2]
[421915021,1778332246000,-150.0,0.00024834,2]
[421915019,1778332246000,-4083.94,0.00024658,2]
[421915018,1778332246000,-423.63,0.00024658,2]
[421915026,1778332246000,-1127.35330078,0.00025,2]
[421915024,1778332246000,-4083.94,0.00024946,7]
[421915020,1778332246000,-424.58,0.00024658,2]
[421915022,1778332246000,-4247.44,0.00024946,7]
[421915023,1778332246000,-423.63,0.00024946,7]
[421915025,1778332246000,-424.58,0.00024946,7]
[421915028,1778332246000,-1806.39039942,0.00025,2]
[421915027,1778332246000,-209.99094204,0.00025,2]
[421915029,1778332246000,-540.0,0.00025,2]
[421915030,1778332246000,-618.12356293,0.00025,2]
[421915017,1778332246000,-4247.44,0.00024658,2]
[421914999,1778332246000,-202.626464,0.00024658,2]
[421915011,1778332246000,-202.626464,0.00024658,2]
[421914997,1778332246000,-202.626464,0.00024658,2]
[421914968,1778332246000,-9334.0,0.000242,2]
[421914970,1778332246000,-1653.1,0.00024324,2]
[421914971,1778332246000,-830.58,0.000244,7]
[421914974,1778332246000,-151.0,0.00024658,2]
[421914972,1778332246000,-192.24565183,0.00024648,2]
[421915000,1778332246000,-202.626464,0.00024658,2]
[421914976,1778332246000,-151.0,0.00024658,2]
[421914975,1778332246000,-151.0,0.00024658,2]
[421914978,1778332246000,-151.0,0.00024658,2]
[421914977,1778332246000,-151.0,0.00024658,2]
[421914980,1778332246000,-151.0,0.00024658,2]
[421914979,1778332246000,-151.0,0.00024658,2]
[421914982,1778332246000,-285.992992,0.00024658,2]
[421914987,1778332246000,-151.0,0.00024658,2]
[421914973,1778332246000,-150.0,0.00024658,2]
[421914983,1778332246000,-151.0,0.00024658,2]
[421914986,1778332246000,-151.0,0.00024658,2]
[421914998,1778332246000,-202.626464,0.00024658,2]
[421914995,1778332246000,-1000.0,0.00024658,2]
[421914993,1778332246000,-151.0,0.00024658,2]
[421914994,1778332246000,-162.330251,0.00024658,2]
[421914989,1778332246000,-151.0,0.00024658,2]
[421914990,1778332246000,-151.0,0.00024658,2]
[421914966,1778332246000,-1882.05,0.0002411,2]
[421914991,1778332246000,-151.0,0.00024658,2]
[421914985,1778332246000,-151.0,0.00024658,2]
[421914981,1778332246000,-151.0,0.00024658,2]
[421914984,1778332246000,-151.0,0.00024658,2]
[421914988,1778332246000,-151.0,0.00024658,2]
[421914992,1778332246000,-151.0,0.00024658,2]
[421915048,1778332247000,-4247.44,0.00025523,2]
[421915044,1778332247000,-642.09,0.00025295,30]
[421915046,1778332247000,-4224.15020531,0.00025378,2]
[421915047,1778332247000,-5215.92271861,0.000255,2]
[421915045,1778332247000,-491.18814468,0.00025375,2]
[421915042,1778332247000,-4083.94,0.00025234,30]
[421915043,1778332247000,-424.58,0.00025234,30]
[421915041,1778332247000,-423.63,0.00025234,30]
[421915036,1778332247000,-160.0,0.000251,6]
[421915038,1778332247000,-929.0,0.0002517,2]
[421915034,1778332247000,-541.08606429,0.00025,7]
[421915037,1778332247000,-1071.96615741,0.00025136,24]
[421915039,1778332247000,-250.0,0.00025205,2]
[421915033,1778332247000,-2126.1513905,0.00025,2]
[421915031,1778332247000,-3079.89193733,0.00025,2]
[421915032,1778332247000,-56617.88213438,0.00025,7]
[421915040,1778332247000,-4247.44,0.00025234,30]
[421915035,1778332247000,-5530.0,0.00025,3]
[421915051,1778332247000,-424.58,0.00025523,2]
[421915052,1778332247000,-350.0,0.00025753,2]
[421915049,1778332247000,-423.63,0.00025523,2]
[421915066,1778332247000,-4247.44,0.00026099,30]
[421915065,1778332247000,-292.97,0.00026027,7]
[421915062,1778332247000,-550.0,0.00026,2]
[421915061,1778332247000,-1683.83,0.00025938,60]
[421915060,1778332247000,-150.0,0.00025834,2]
[421915059,1778332247000,-424.58,0.00025811,7]
[421915063,1778332247000,-1574.569088,0.00026027,2]
[421915067,1778332247000,-423.63,0.00026099,30]
[421915058,1778332247000,-4083.94,0.00025811,7]
[421915064,1778332247000,-1579.622141,0.00026027,2]
[421915055,1778332247000,-5530.0,0.000258,5]
[421915056,1778332247000,-4247.44,0.00025811,7]
[421915054,1778332247000,-251.018,0.00025787,2]
[421915053,1778332247000,-925.0,0.00025787,2]
[421915057,1778332247000,-423.63,0.00025811,7]
[421915050,1778332247000,-4083.94,0.00025523,2]
[421915203,1778332248000,-575.757224,0.00027397,2]
[421915199,1778332248000,-151.0,0.00027397,2]
[421915197,1778332248000,-2365.275514,0.00027397,2]
[421915200,1778332248000,-151.0,0.00027397,2]
[421915198,1778332248000,-151.0,0.00027397,2]
[421915196,1778332248000,-2365.275513,0.00027397,2]
[421915194,1778332248000,-2365.275513,0.00027397,2]
[421915190,1778332248000,-2365.275513,0.00027397,2]
[421915193,1778332248000,-2365.275513,0.00027397,2]
[421915191,1778332248000,-2365.275513,0.00027397,2]
[421915204,1778332248000,-575.757224,0.00027397,2]
[421915195,1778332248000,-2365.275513,0.00027397,2]
[421915202,1778332248000,-525.91,0.00027397,2]
[421915211,1778332248000,-575.757224,0.00027397,2]
[421915206,1778332248000,-575.757224,0.00027397,2]
[421915201,1778332248000,-300.0,0.00027397,2]
[421915207,1778332248000,-575.757224,0.00027397,2]
[421915209,1778332248000,-575.757224,0.00027397,2]
[421915210,1778332248000,-575.757224,0.00027397,2]
[421915208,1778332248000,-575.757224,0.00027397,2]
[421915218,1778332248000,-575.757224,0.00027397,2]
[421915192,1778332248000,-2365.275513,0.00027397,2]
[421915219,1778332248000,-575.757224,0.00027397,2]
[421915214,1778332248000,-575.757224,0.00027397,2]
[421915215,1778332248000,-575.757224,0.00027397,2]
[421915217,1778332248000,-575.757224,0.00027397,2]
[421915212,1778332248000,-575.757224,0.00027397,2]
[421915213,1778332248000,-575.757224,0.00027397,2]
[421915205,1778332248000,-575.757224,0.00027397,2]
[421915189,1778332248000,-2365.275513,0.00027397,2]
[421915177,1778332248000,-1463.58,0.00027397,2]
[421915188,1778332248000,-2365.275513,0.00027397,2]
[421915220,1778332248000,-575.757224,0.00027397,2]
[421915159,1778332248000,-500.0,0.00027397,2]
[421915161,1778332248000,-500.0,0.00027397,2]
[421915163,1778332248000,-500.0,0.00027397,2]
[421915160,1778332248000,-500.0,0.00027397,2]
[421915162,1778332248000,-500.0,0.00027397,2]
[421915164,1778332248000,-500.0,0.00027397,2]
[421915168,1778332248000,-500.0,0.00027397,2]
[421915166,1778332248000,-500.0,0.00027397,2]
[421915167,1778332248000,-500.0,0.00027397,2]
[421915165,1778332248000,-500.0,0.00027397,2]
[421915169,1778332248000,-558.59937566,0.00027397,2]
[421915170,1778332248000,-258.61409264,0.00027397,2]
[421915187,1778332248000,-2365.275513,0.00027397,2]
[421915171,1778332248000,-1500.0,0.00027397,2]
[421915172,1778332248000,-650.0,0.00027397,5]
[421915175,1778332248000,-151.0,0.00027397,2]
[421915179,1778332248000,-2365.275513,0.00027397,2]
[421915181,1778332248000,-2365.275513,0.00027397,2]
[421915173,1778332248000,-151.0,0.00027397,2]
[421915178,1778332248000,-2365.275513,0.00027397,2]
[421915180,1778332248000,-2365.275513,0.00027397,2]